[Event "Titled Tuesday Blitz November 22 Early 2022"]
[White "Nugumanov, Bakhtiyar"]
[Black "Sreyas Payyappat"]
[WhiteFideId "13701797"]
[BlackFideId "46674969"]
[WhiteElo "2287"]
[BlackElo "2083"]
[Result "1-0"]
[Round "06"]
[TimeControl "180+1"]
[Date "2022.11.23"]
[WhiteClock "0:00:10"]
[BlackClock "0:00:26"]

1. Nf3 {[%clk 0:02:58]}  Nf6 {[%clk 0:02:59]} 2. c3 {[%clk 0:02:57]}  d5 {[%clk 0:02:57]} 3. g3 {[%clk 0:02:55]}  g6 {[%clk 0:02:56]} 4. Bg2 {[%clk 0:02:55]}  Bg7 {[%clk 0:02:56]} 5. d4 {[%clk 0:02:55]}  c5 {[%clk 0:02:55]} 6. O-O {[%clk 0:02:55]}  O-O {[%clk 0:02:55]} 7. b3 {[%clk 0:02:54]}  Nc6 {[%clk 0:02:54]} 8. Bb2 {[%clk 0:02:55]}  Ne4 {[%clk 0:02:53]} 9. Nbd2 {[%clk 0:02:51]}  cxd4 {[%clk 0:02:46]} 10. cxd4 {[%clk 0:02:51]}  Bg4 {[%clk 0:02:44]} 11. h3 {[%clk 0:02:46]}  Bxf3 {[%clk 0:02:43]} 12. Nxf3 {[%clk 0:02:45]}  Rc8 {[%clk 0:02:40]} 13. Rc1 {[%clk 0:02:42]}  Nb4 {[%clk 0:02:38]} 14. a3 {[%clk 0:02:38]}  Na2 {[%clk 0:02:36]} 15. Rxc8 {[%clk 0:02:33]}  Qxc8 {[%clk 0:02:37]} 16. Qd3 {[%clk 0:02:32]}  Qf5 {[%clk 0:01:39]} 17. Ra1 {[%clk 0:02:21]}  Nec3 {[%clk 0:01:38]} 18. Qxf5 {[%clk 0:01:50]}  gxf5 {[%clk 0:01:39]} 19. Kf1 {[%clk 0:01:51]}  Rc8 {[%clk 0:01:30]} 20. e3 {[%clk 0:01:48]}  b5 {[%clk 0:01:23]} 21. b4 {[%clk 0:01:09]}  e6 {[%clk 0:01:11]} 22. Ke1 {[%clk 0:01:08]}  Na4 {[%clk 0:01:03]} 23. Rxa2 {[%clk 0:00:43]}  Rc2 {[%clk 0:01:01]} 24. Bf1 {[%clk 0:00:20]}  a6 {[%clk 0:00:53]} 25. Nd2 {[%clk 0:00:08]}  Rxb2 {[%clk 0:00:25]} 26. Rxb2 {[%clk 0:00:07]}  Nxb2 {[%clk 0:00:26]} 27. Nb3 {[%clk 0:00:07]}  Bf8 {[%clk 0:00:20]} 28. Kd2 {[%clk 0:00:07]}  Bd6 {[%clk 0:00:19]} 29. Kc3 {[%clk 0:00:07]}  Na4+ {[%clk 0:00:19]} 30. Kc2 {[%clk 0:00:06]}  Kf8 {[%clk 0:00:20]} 31. Bd3 {[%clk 0:00:03]}  Ke7 {[%clk 0:00:20]} 32. f4 {[%clk 0:00:04]}  Kd7 {[%clk 0:00:19]} 33. Nc1 {[%clk 0:00:05]}  Nb6 {[%clk 0:00:19]} 34. Nb3 {[%clk 0:00:05]}  Nc4 {[%clk 0:00:18]} 35. Nc5+ {[%clk 0:00:05]}  Bxc5 {[%clk 0:00:18]} 36. Bxc4 {[%clk 0:00:06]}  Bxd4 {[%clk 0:00:16]} 37. Bxb5+ {[%clk 0:00:06]}  axb5 {[%clk 0:00:17]} 38. exd4 {[%clk 0:00:07]}  f6 {[%clk 0:00:17]} 39. Kb3 {[%clk 0:00:03]}  Kd6 {[%clk 0:00:17]} 40. a4 {[%clk 0:00:03]}  bxa4+ {[%clk 0:00:17]} 41. Kxa4 {[%clk 0:00:04]}  e5 {[%clk 0:00:18]} 42. fxe5+ {[%clk 0:00:03]}  fxe5 {[%clk 0:00:19]} 43. dxe5+ {[%clk 0:00:04]}  Kxe5 {[%clk 0:00:19]} 44. b5 {[%clk 0:00:04]}  Kd6 {[%clk 0:00:19]} 45. Kb4 {[%clk 0:00:04]}  h5 {[%clk 0:00:18]} 46. h4 {[%clk 0:00:03]}  Ke5 {[%clk 0:00:16]} 47. Kc5 {[%clk 0:00:01]}  d4 {[%clk 0:00:16]} 48. b6 {[%clk 0:00:02]}  d3 {[%clk 0:00:16]} 49. b7 {[%clk 0:00:03]}  d2 {[%clk 0:00:17]} 50. b8=Q+ {[%clk 0:00:03]}  Ke4 {[%clk 0:00:18]} 51. Qd8 {[%clk 0:00:04]}  Ke3 {[%clk 0:00:17]} 52. Qe7+ {[%clk 0:00:04]}  Kf2 {[%clk 0:00:17]} 53. Qd6 {[%clk 0:00:05]}  Ke2 {[%clk 0:00:18]} 54. Qe5+ {[%clk 0:00:05]}  Kd3 {[%clk 0:00:18]} 55. Qd5+ {[%clk 0:00:05]}  Kc2 {[%clk 0:00:17]} 56. Qxf5+ {[%clk 0:00:05]}  Kc1 {[%clk 0:00:17]} 57. Qxh5 {[%clk 0:00:05]}  d1=Q {[%clk 0:00:18]} 58. Qxd1+ {[%clk 0:00:05]}  Kxd1 {[%clk 0:00:19]} 59. h5 {[%clk 0:00:06]}  Ke2 {[%clk 0:00:20]} 60. g4 {[%clk 0:00:06]}  Kf3 {[%clk 0:00:21]} 61. g5 {[%clk 0:00:07]}  Ke4 {[%clk 0:00:22]} 62. g6 {[%clk 0:00:07]}  Kf5 {[%clk 0:00:23]} 63. g7 {[%clk 0:00:08]}  Ke5 {[%clk 0:00:24]} 64. g8=Q {[%clk 0:00:09]}  Ke4 {[%clk 0:00:25]} 65. h6 {[%clk 0:00:09]}  Kf3 {[%clk 0:00:25]} 66. h7 {[%clk 0:00:09]}  Ke3 {[%clk 0:00:26]} 67. h8=Q {[%clk 0:00:10]}  Kd2 {[%clk 0:00:27]} 68. Qf6 {[%clk 0:00:10]}  Kd3 {[%clk 0:00:27]} 69. Qd5+ {[%clk 0:00:11]}  Kc2 {[%clk 0:00:28]} 70. Qf2+ {[%clk 0:00:10]}  Kc3 {[%clk 0:00:27]} 71. Qdd4+ {[%clk 0:00:10]}  Kb3 {[%clk 0:00:26]} 72. Qfb2# {[%clk 0:00:10]} 1-0


[Site "https://www.chess.com"]

[Event "Titled Tuesday Blitz November 22 Early 2022"]
[White "Oparin, Grigoriy"]
[Black "Gabrielian, Artur"]
[WhiteFideId "24125890"]
[BlackFideId "4131002"]
[WhiteElo "2639"]
[BlackElo "2432"]
[Result "0-1"]
[Round "06"]
[TimeControl "180+1"]
[Date "2022.11.22"]
[WhiteClock "0:00:07"]
[BlackClock "0:00:19"]

1. g3 {[%clk 0:02:52]}  g6 {[%clk 0:02:58]} 2. Bg2 {[%clk 0:02:52]}  Bg7 {[%clk 0:02:59]} 3. c4 {[%clk 0:02:53]}  Nf6 {[%clk 0:02:57]} 4. Nc3 {[%clk 0:02:53]}  O-O {[%clk 0:02:56]} 5. e4 {[%clk 0:02:54]}  d6 {[%clk 0:02:55]} 6. Nge2 {[%clk 0:02:54]}  c5 {[%clk 0:02:55]} 7. d4 {[%clk 0:02:53]}  cxd4 {[%clk 0:02:54]} 8. Nxd4 {[%clk 0:02:54]}  Nc6 {[%clk 0:02:55]} 9. Nxc6 {[%clk 0:02:54]}  bxc6 {[%clk 0:02:54]} 10. O-O {[%clk 0:02:55]}  Be6 {[%clk 0:02:50]} 11. Qe2 {[%clk 0:02:53]}  Nd7 {[%clk 0:02:50]} 12. Bd2 {[%clk 0:02:51]}  Rb8 {[%clk 0:02:42]} 13. b3 {[%clk 0:02:51]}  Nc5 {[%clk 0:02:41]} 14. Rad1 {[%clk 0:02:48]}  a5 {[%clk 0:02:39]} 15. f4 {[%clk 0:02:47]}  a4 {[%clk 0:02:36]} 16. f5 {[%clk 0:02:18]}  Bd7 {[%clk 0:02:36]} 17. bxa4 {[%clk 0:02:14]}  Rb2 {[%clk 0:02:34]} 18. Qe3 {[%clk 0:02:06]}  Qb6 {[%clk 0:02:32]} 19. Kh1 {[%clk 0:02:03]}  Ra8 {[%clk 0:02:30]} 20. Rb1 {[%clk 0:01:50]}  Bxc3 {[%clk 0:02:14]} 21. a5 {[%clk 0:00:59]}  Qb8 {[%clk 0:01:49]} 22. Rxb2 {[%clk 0:00:47]}  Bxb2 {[%clk 0:01:46]} 23. Rb1 {[%clk 0:00:47]}  Na4 {[%clk 0:01:31]} 24. fxg6 {[%clk 0:00:22]}  hxg6 {[%clk 0:01:31]} 25. c5 {[%clk 0:00:20]}  dxc5 {[%clk 0:01:19]} 26. Qb3 {[%clk 0:00:13]}  Qxb3 {[%clk 0:01:15]} 27. axb3 {[%clk 0:00:14]}  Bc3 {[%clk 0:01:15]} 28. bxa4 {[%clk 0:00:09]}  Bxd2 {[%clk 0:01:15]} 29. Rd1 {[%clk 0:00:10]}  Be6 {[%clk 0:00:57]} 30. Rxd2 {[%clk 0:00:10]}  Rxa5 {[%clk 0:00:57]} 31. Rc2 {[%clk 0:00:10]}  c4 {[%clk 0:00:56]} 32. e5 {[%clk 0:00:10]}  Rxa4 {[%clk 0:00:55]} 33. Bxc6 {[%clk 0:00:11]}  Ra5 {[%clk 0:00:55]} 34. Kg1 {[%clk 0:00:10]}  Rxe5 {[%clk 0:00:54]} 35. Bf3 {[%clk 0:00:09]}  Re3 {[%clk 0:00:51]} 36. Kf2 {[%clk 0:00:09]}  Ra3 {[%clk 0:00:50]} 37. Be2 {[%clk 0:00:08]}  c3 {[%clk 0:00:50]} 38. Ke3 {[%clk 0:00:08]}  Bf5 {[%clk 0:00:49]} 39. Rc1 {[%clk 0:00:08]}  c2+ {[%clk 0:00:40]} 40. Kd2 {[%clk 0:00:08]}  e5 {[%clk 0:00:29]} 41. g4 {[%clk 0:00:08]}  Be4 {[%clk 0:00:30]} 42. h4 {[%clk 0:00:08]}  Kg7 {[%clk 0:00:28]} 43. h5 {[%clk 0:00:08]}  gxh5 {[%clk 0:00:28]} 44. gxh5 {[%clk 0:00:09]}  Kh6 {[%clk 0:00:28]} 45. Rf1 {[%clk 0:00:08]}  f5 {[%clk 0:00:27]} 46. Re1 {[%clk 0:00:05]}  Rh3 {[%clk 0:00:23]} 47. Bc4 {[%clk 0:00:01]}  Rh2+ {[%clk 0:00:22]} 48. Kc1 {[%clk 0:00:01]}  Kxh5 {[%clk 0:00:21]} 49. Rg1 {[%clk 0:00:02]}  Rh1 {[%clk 0:00:19]} 50. Rxh1+ {[%clk 0:00:02]}  Bxh1 {[%clk 0:00:19]} 51. Kxc2 {[%clk 0:00:03]}  Kg5 {[%clk 0:00:20]} 52. Kd2 {[%clk 0:00:04]}  Bc6 {[%clk 0:00:19]} 53. Ke3 {[%clk 0:00:04]}  f4+ {[%clk 0:00:20]} 54. Kf2 {[%clk 0:00:05]}  e4 {[%clk 0:00:20]} 55. Be2 {[%clk 0:00:06]}  Kf6 {[%clk 0:00:20]} 56. Bg4 {[%clk 0:00:06]}  e3+ {[%clk 0:00:20]} 57. Ke1 {[%clk 0:00:06]}  Kg5 {[%clk 0:00:20]} 58. Be2 {[%clk 0:00:06]}  Kh4 {[%clk 0:00:20]} 59. Bd1 {[%clk 0:00:05]}  Kg3 {[%clk 0:00:20]} 60. Bh5 {[%clk 0:00:06]}  f3 {[%clk 0:00:20]} 61. Kd1 {[%clk 0:00:06]}  Ba4+ {[%clk 0:00:19]} 62. Ke1 {[%clk 0:00:05]}  f2+ {[%clk 0:00:19]} 63. Ke2 {[%clk 0:00:06]}  Bb5+ {[%clk 0:00:19]} 64. Kxe3 {[%clk 0:00:07]}  f1=Q {[%clk 0:00:19]} 0-1


[Site "https://www.chess.com"]

[Event "Titled Tuesday Blitz November 22 Early 2022"]
[White "Orzech, Dominik"]
[Black "Crevatin, Leo"]
[WhiteFideId "1115065"]
[BlackFideId "1726307"]
[WhiteElo "2272"]
[BlackElo "2208"]
[Result "1-0"]
[Round "06"]
[TimeControl "180+1"]
[Date "2022.11.23"]
[WhiteClock "0:00:56"]
[BlackClock "0:00:01"]

1. Nf3 {[%clk 0:02:26]}  Nf6 {[%clk 0:02:58]} 2. c4 {[%clk 0:02:27]}  c5 {[%clk 0:02:58]} 3. Nc3 {[%clk 0:02:25]}  Nc6 {[%clk 0:02:58]} 4. g3 {[%clk 0:02:25]}  d5 {[%clk 0:02:58]} 5. cxd5 {[%clk 0:02:23]}  Nxd5 {[%clk 0:02:58]} 6. Bg2 {[%clk 0:02:23]}  Nc7 {[%clk 0:02:59]} 7. O-O {[%clk 0:02:22]}  e5 {[%clk 0:02:59]} 8. d3 {[%clk 0:02:21]}  Be7 {[%clk 0:02:59]} 9. Nd2 {[%clk 0:02:22]}  O-O {[%clk 0:02:57]} 10. Nc4 {[%clk 0:02:23]}  Bd7 {[%clk 0:02:54]} 11. f4 {[%clk 0:02:23]}  exf4 {[%clk 0:02:52]} 12. gxf4 {[%clk 0:02:21]}  b5 {[%clk 0:02:44]} 13. Ne5 {[%clk 0:02:18]}  Nxe5 {[%clk 0:02:44]} 14. Bxa8 {[%clk 0:02:15]}  Qxa8 {[%clk 0:02:42]} 15. fxe5 {[%clk 0:02:15]}  Bh3 {[%clk 0:02:34]} 16. Rf3 {[%clk 0:02:14]}  Be6 {[%clk 0:02:27]} 17. Bf4 {[%clk 0:02:11]}  Nd5 {[%clk 0:02:19]} 18. Nxd5 {[%clk 0:02:08]}  Qxd5 {[%clk 0:02:15]} 19. Rg3 {[%clk 0:02:02]}  Rd8 {[%clk 0:02:03]} 20. Qd2 {[%clk 0:01:55]}  c4 {[%clk 0:01:58]} 21. a4 {[%clk 0:01:52]}  a6 {[%clk 0:01:40]} 22. axb5 {[%clk 0:01:50]}  axb5 {[%clk 0:01:41]} 23. d4 {[%clk 0:01:48]}  g6 {[%clk 0:01:15]} 24. e3 {[%clk 0:01:46]}  Bf5 {[%clk 0:01:09]} 25. Qa5 {[%clk 0:01:41]}  Bc8 {[%clk 0:00:58]} 26. Qc7 {[%clk 0:01:39]}  Re8 {[%clk 0:00:37]} 27. Ra7 {[%clk 0:01:37]}  Qe4 {[%clk 0:00:24]} 28. Bg5 {[%clk 0:01:24]}  Qb1+ {[%clk 0:00:19]} 29. Kg2 {[%clk 0:01:23]}  Qxb2+ {[%clk 0:00:16]} 30. Kf3 {[%clk 0:01:24]}  Qb1 {[%clk 0:00:08]} 31. Bxe7 {[%clk 0:01:21]}  Qf1+ {[%clk 0:00:07]} 32. Ke4 {[%clk 0:01:19]}  Qh1+ {[%clk 0:00:07]} 33. Kf4 {[%clk 0:01:17]}  Qf1+ {[%clk 0:00:03]} 34. Rf3 {[%clk 0:01:17]}  Qg2 {[%clk 0:00:02]} 35. h3 {[%clk 0:01:12]}  Qh2+ {[%clk 0:00:01]} 36. Ke4 {[%clk 0:01:09]}  Qc2+ {[%clk 0:00:02]} 37. Kd5 {[%clk 0:01:08]}  Be6+ {[%clk 0:00:02]} 38. Kd6 {[%clk 0:01:06]}  Qe4 {[%clk 0:00:02]} 39. Qc6 {[%clk 0:01:03]}  Qxc6+ {[%clk 0:00:01]} 40. Kxc6 {[%clk 0:01:02]}  Rc8+ {[%clk 0:00:01]} 41. Kxb5 {[%clk 0:01:01]}  c3 {[%clk 0:00:01]} 42. Bc5 {[%clk 0:01:00]}  c2 {[%clk 0:00:01]} 43. Rf1 {[%clk 0:01:00]}  Rb8+ {[%clk 0:00:01]} 44. Bb6 {[%clk 0:00:56]} 1-0


[Site "https://www.chess.com"]

[Event "Titled Tuesday Blitz November 22 Early 2022"]
[White "Osmonbekov, Talaibek"]
[Black "Szyszylo, Rafal"]
[WhiteFideId "2017253"]
[BlackFideId "1109626"]
[WhiteElo "2135"]
[BlackElo "1981"]
[Result "1-0"]
[Round "06"]
[TimeControl "180+1"]
[Date "2022.11.23"]
[WhiteClock "0:00:05"]
[BlackClock "0:00:01"]

1. d4 {[%clk 0:03:00]}  d6 {[%clk 0:02:57]} 2. Bf4 {[%clk 0:03:01]}  g6 {[%clk 0:02:57]} 3. Nc3 {[%clk 0:03:00]}  Bg7 {[%clk 0:02:57]} 4. e4 {[%clk 0:03:01]}  Nd7 {[%clk 0:02:57]} 5. Bg5 {[%clk 0:02:45]}  c5 {[%clk 0:02:55]} 6. Nf3 {[%clk 0:02:42]}  Qb6 {[%clk 0:02:52]} 7. Nd5 {[%clk 0:02:33]}  Qa5+ {[%clk 0:02:37]} 8. b4 {[%clk 0:02:32]}  cxb4 {[%clk 0:02:36]} 9. Qd2 {[%clk 0:02:29]}  e6 {[%clk 0:02:29]} 10. Nxb4 {[%clk 0:02:22]}  Ngf6 {[%clk 0:02:20]} 11. Bd3 {[%clk 0:02:07]}  Qc7 {[%clk 0:02:12]} 12. c3 {[%clk 0:02:02]}  O-O {[%clk 0:02:07]} 13. O-O {[%clk 0:02:02]}  Nb6 {[%clk 0:02:00]} 14. Nc2 {[%clk 0:01:31]}  Nc4 {[%clk 0:01:57]} 15. Qc1 {[%clk 0:01:29]}  Bd7 {[%clk 0:01:55]} 16. Bh6 {[%clk 0:01:16]}  e5 {[%clk 0:01:43]} 17. Bg5 {[%clk 0:00:59]}  Nh5 {[%clk 0:01:40]} 18. Bxc4 {[%clk 0:00:48]}  Qxc4 {[%clk 0:01:38]} 19. Ne3 {[%clk 0:00:49]}  Qd3 {[%clk 0:01:30]} 20. dxe5 {[%clk 0:00:42]}  dxe5 {[%clk 0:01:17]} 21. Rd1 {[%clk 0:00:41]}  Qb5 {[%clk 0:01:18]} 22. Rb1 {[%clk 0:00:35]}  Qc6 {[%clk 0:01:18]} 23. Nd5 {[%clk 0:00:34]}  Rfe8 {[%clk 0:01:08]} 24. Ne7+ {[%clk 0:00:24]}  Rxe7 {[%clk 0:01:09]} 25. Bxe7 {[%clk 0:00:25]}  Nf4 {[%clk 0:01:05]} 26. Qe3 {[%clk 0:00:24]}  Bg4 {[%clk 0:00:59]} 27. Rd8+ {[%clk 0:00:17]}  Rxd8 {[%clk 0:00:57]} 28. Bxd8 {[%clk 0:00:18]}  b6 {[%clk 0:00:49]} 29. h3 {[%clk 0:00:17]}  Be6 {[%clk 0:00:47]} 30. Rd1 {[%clk 0:00:17]}  h6 {[%clk 0:00:36]} 31. a3 {[%clk 0:00:14]}  Bc4 {[%clk 0:00:24]} 32. Be7 {[%clk 0:00:13]}  Kh7 {[%clk 0:00:21]} 33. Bd6 {[%clk 0:00:12]}  Qe8 {[%clk 0:00:15]} 34. Bc7 {[%clk 0:00:09]}  Bf6 {[%clk 0:00:13]} 35. Rd6 {[%clk 0:00:07]}  Be7 {[%clk 0:00:12]} 36. Rd2 {[%clk 0:00:06]}  Bc5 {[%clk 0:00:11]} 37. Qe1 {[%clk 0:00:04]}  Qe7 {[%clk 0:00:11]} 38. Bxe5 {[%clk 0:00:04]}  g5 {[%clk 0:00:05]} 39. Bxf4 {[%clk 0:00:04]}  gxf4 {[%clk 0:00:06]} 40. e5 {[%clk 0:00:04]}  Qe6 {[%clk 0:00:05]} 41. Qe4+ {[%clk 0:00:04]}  Kg7 {[%clk 0:00:05]} 42. Qxf4 {[%clk 0:00:03]}  Qg6 {[%clk 0:00:05]} 43. Qxc4 {[%clk 0:00:03]}  Qb1+ {[%clk 0:00:02]} 44. Kh2 {[%clk 0:00:02]}  Bxf2 {[%clk 0:00:02]} 45. Qg4+ {[%clk 0:00:02]}  Kf8 {[%clk 0:00:02]} 46. Nh4 {[%clk 0:00:03]}  Bxh4 {[%clk 0:00:01]} 47. Qxh4 {[%clk 0:00:03]}  Qc1 {[%clk 0:00:01]} 48. Rd8+ {[%clk 0:00:03]}  Kg7 {[%clk 0:00:01]} 49. Qf6+ {[%clk 0:00:04]}  Kh7 {[%clk 0:00:01]} 50. Rh8# {[%clk 0:00:05]} 1-0


[Site "https://www.chess.com"]

[Event "Titled Tuesday Blitz November 22 Early 2022"]
[White "Pinheiro, Iung Alicio de O."]
[Black "Reprintsev, Alexander"]
[WhiteFideId "2104350"]
[BlackFideId "14100541"]
[WhiteElo "2283"]
[BlackElo "2230"]
[Result "0-1"]
[Round "06"]
[TimeControl "180+1"]
[Date "2022.11.23"]
[WhiteClock "0:00:03"]
[BlackClock "0:00:54"]

1. d4 {[%clk 0:03:00]}  d5 {[%clk 0:02:59]} 2. c4 {[%clk 0:03:00]}  e5 {[%clk 0:02:59]} 3. dxe5 {[%clk 0:02:59]}  d4 {[%clk 0:02:59]} 4. Nf3 {[%clk 0:02:59]}  Nc6 {[%clk 0:02:59]} 5. a3 {[%clk 0:02:59]}  g6 {[%clk 0:02:59]} 6. b4 {[%clk 0:02:53]}  Bg7 {[%clk 0:02:56]} 7. Bb2 {[%clk 0:02:53]}  Nh6 {[%clk 0:02:55]} 8. Nbd2 {[%clk 0:02:51]}  O-O {[%clk 0:02:53]} 9. Nb3 {[%clk 0:02:51]}  Re8 {[%clk 0:02:44]} 10. Nbxd4 {[%clk 0:02:47]}  Nxe5 {[%clk 0:02:40]} 11. Nxe5 {[%clk 0:02:42]}  Bxe5 {[%clk 0:02:41]} 12. Qd2 {[%clk 0:02:18]}  Nf5 {[%clk 0:02:32]} 13. O-O-O {[%clk 0:02:14]}  Qf6 {[%clk 0:02:24]} 14. e3 {[%clk 0:02:09]}  c5 {[%clk 0:02:18]} 15. Nxf5 {[%clk 0:02:01]}  Bxf5 {[%clk 0:02:17]} 16. Bxe5 {[%clk 0:02:01]}  Qxe5 {[%clk 0:02:17]} 17. Qb2 {[%clk 0:02:02]}  Qe6 {[%clk 0:02:01]} 18. Bd3 {[%clk 0:01:06]}  Bxd3 {[%clk 0:01:43]} 19. Rxd3 {[%clk 0:01:07]}  Qxc4+ {[%clk 0:01:36]} 20. Rc3 {[%clk 0:01:06]}  Qe4 {[%clk 0:01:35]} 21. f3 {[%clk 0:01:01]}  Qe5 {[%clk 0:01:25]} 22. bxc5 {[%clk 0:00:55]}  Rac8 {[%clk 0:01:25]} 23. Qc2 {[%clk 0:00:54]}  Rc6 {[%clk 0:01:20]} 24. Kb1 {[%clk 0:00:17]}  Rec8 {[%clk 0:01:14]} 25. Rc1 {[%clk 0:00:17]}  b6 {[%clk 0:01:10]} 26. Qa4 {[%clk 0:00:17]}  Rxc5 {[%clk 0:01:00]} 27. Rxc5 {[%clk 0:00:17]}  bxc5 {[%clk 0:01:01]} 28. e4 {[%clk 0:00:13]}  Rb8+ {[%clk 0:01:00]} 29. Kc2 {[%clk 0:00:13]}  Rb2+ {[%clk 0:00:59]} 30. Kd3 {[%clk 0:00:10]}  Qd6+ {[%clk 0:00:57]} 31. Kc3 {[%clk 0:00:03]}  Qd2+ {[%clk 0:00:54]} 32. Kc4 {[%clk 0:00:03]}  Qd4# {[%clk 0:00:54]} 0-1


[Site "https://www.chess.com"]

[Event "Titled Tuesday Blitz November 22 Early 2022"]
[White "Principe, Gerson"]
[Black "Tristan, Leonardo"]
[WhiteFideId "3804550"]
[BlackFideId "113816"]
[WhiteElo "2280"]
[BlackElo "2461"]
[Result "1-0"]
[Round "06"]
[TimeControl "180+1"]
[Date "2022.11.23"]
[WhiteClock "0:02:12"]
[BlackClock "0:02:39"]

1. d4 {[%clk 0:03:00]}  d5 {[%clk 0:03:00]} 2. Nf3 {[%clk 0:03:01]}  Nf6 {[%clk 0:03:00]} 3. e3 {[%clk 0:02:59]}  g6 {[%clk 0:03:00]} 4. Be2 {[%clk 0:02:59]}  Bg7 {[%clk 0:03:00]} 5. O-O {[%clk 0:03:00]}  O-O {[%clk 0:03:00]} 6. b3 {[%clk 0:02:56]}  b6 {[%clk 0:03:00]} 7. Bb2 {[%clk 0:02:57]}  Bb7 {[%clk 0:03:00]} 8. Nbd2 {[%clk 0:02:58]}  Nbd7 {[%clk 0:03:01]} 9. c4 {[%clk 0:02:58]}  e6 {[%clk 0:02:58]} 10. Rc1 {[%clk 0:02:55]}  c5 {[%clk 0:02:49]} 11. Qc2 {[%clk 0:02:49]}  Rc8 {[%clk 0:02:49]} 12. Qb1 {[%clk 0:02:49]}  Rc7 {[%clk 0:02:49]} 13. Rfd1 {[%clk 0:02:43]}  Qa8 {[%clk 0:02:47]} 14. dxc5 {[%clk 0:02:28]}  Nxc5 {[%clk 0:02:42]} 15. Qa1 {[%clk 0:02:28]}  Nh5 {[%clk 0:02:40]} 16. Bxg7 {[%clk 0:02:26]}  Nxg7 {[%clk 0:02:41]} 17. cxd5 {[%clk 0:02:13]}  Bxd5 {[%clk 0:02:39]} 18. b4 {[%clk 0:02:12]} 1-0


[Site "https://www.chess.com"]

[Event "Titled Tuesday Blitz November 22 Early 2022"]
[White "Prithu Gupta"]
[Black "Pranav Anand"]
[WhiteFideId "46618546"]
[BlackFideId "46626786"]
[WhiteElo "2344"]
[BlackElo "2402"]
[Result "0-1"]
[Round "06"]
[TimeControl "180+1"]
[Date "2022.11.23"]
[WhiteClock "0:00:01"]
[BlackClock "0:01:26"]

1. d4 {[%clk 0:02:46]}  Nf6 {[%clk 0:02:59]} 2. c4 {[%clk 0:02:39]}  e6 {[%clk 0:02:59]} 3. Nf3 {[%clk 0:02:36]}  Bb4+ {[%clk 0:02:58]} 4. Nbd2 {[%clk 0:02:32]}  O-O {[%clk 0:02:54]} 5. e3 {[%clk 0:02:32]}  d5 {[%clk 0:02:54]} 6. a3 {[%clk 0:02:25]}  Bd6 {[%clk 0:02:50]} 7. c5 {[%clk 0:02:23]}  Be7 {[%clk 0:02:50]} 8. b4 {[%clk 0:02:23]}  a5 {[%clk 0:02:49]} 9. Bb2 {[%clk 0:02:22]}  b6 {[%clk 0:02:48]} 10. Bd3 {[%clk 0:02:17]}  bxc5 {[%clk 0:02:44]} 11. bxc5 {[%clk 0:02:15]}  Ba6 {[%clk 0:02:44]} 12. Qe2 {[%clk 0:02:11]}  Bxd3 {[%clk 0:02:43]} 13. Qxd3 {[%clk 0:02:12]}  Nc6 {[%clk 0:02:39]} 14. O-O {[%clk 0:02:11]}  a4 {[%clk 0:02:38]} 15. Bc3 {[%clk 0:02:07]}  Qd7 {[%clk 0:02:37]} 16. Rfb1 {[%clk 0:02:06]}  Rfb8 {[%clk 0:02:37]} 17. Rxb8+ {[%clk 0:01:53]}  Rxb8 {[%clk 0:02:37]} 18. Rb1 {[%clk 0:01:53]}  Ra8 {[%clk 0:02:24]} 19. Rb5 {[%clk 0:01:47]}  Qc8 {[%clk 0:02:18]} 20. h3 {[%clk 0:01:45]}  h6 {[%clk 0:02:18]} 21. g4 {[%clk 0:01:44]}  Qa6 {[%clk 0:02:10]} 22. Qf1 {[%clk 0:01:41]}  Nd7 {[%clk 0:02:04]} 23. h4 {[%clk 0:01:37]}  e5 {[%clk 0:01:55]} 24. dxe5 {[%clk 0:01:21]}  Nxc5 {[%clk 0:01:55]} 25. g5 {[%clk 0:01:11]}  h5 {[%clk 0:01:52]} 26. Nd4 {[%clk 0:00:55]}  Nxd4 {[%clk 0:01:41]} 27. exd4 {[%clk 0:00:48]}  Ne6 {[%clk 0:01:41]} 28. Rb8+ {[%clk 0:00:47]}  Kh7 {[%clk 0:01:41]} 29. Rxa8 {[%clk 0:00:43]}  Qxa8 {[%clk 0:01:41]} 30. Qd3+ {[%clk 0:00:42]}  g6 {[%clk 0:01:40]} 31. Qf3 {[%clk 0:00:37]}  Kg7 {[%clk 0:01:39]} 32. Bb2 {[%clk 0:00:02]}  Qb7 {[%clk 0:01:37]} 33. Bc1 {[%clk 0:00:02]}  c6 {[%clk 0:01:36]} 34. Qc3 {[%clk 0:00:02]}  Qb5 {[%clk 0:01:36]} 35. Nf1 {[%clk 0:00:02]}  c5 {[%clk 0:01:26]} 36. dxc5 {[%clk 0:00:01]}  Bxc5 {[%clk 0:01:26]} 0-1


[Site "https://www.chess.com"]

[Event "Titled Tuesday Blitz November 22 Early 2022"]
[White "Przybylski, Wojciech"]
[Black "Kovacevic, Radmila"]
[WhiteFideId "1117599"]
[BlackFideId "933171"]
[WhiteElo "2221"]
[BlackElo "2208"]
[Result "1-0"]
[Round "06"]
[TimeControl "180+1"]
[Date "2022.11.23"]
[WhiteClock "0:00:53"]
[BlackClock "0:00:02"]

1. e4 {[%clk 0:02:59]}  e5 {[%clk 0:02:59]} 2. Nf3 {[%clk 0:02:59]}  f5 {[%clk 0:02:59]} 3. exf5 {[%clk 0:02:57]}  e4 {[%clk 0:02:59]} 4. Qe2 {[%clk 0:02:56]}  Qe7 {[%clk 0:02:59]} 5. Nd4 {[%clk 0:02:53]}  c5 {[%clk 0:02:57]} 6. Nb5 {[%clk 0:02:52]}  d5 {[%clk 0:02:52]} 7. d3 {[%clk 0:02:50]}  a6 {[%clk 0:02:42]} 8. N1c3 {[%clk 0:02:39]}  axb5 {[%clk 0:02:34]} 9. Nxd5 {[%clk 0:02:38]}  Nf6 {[%clk 0:02:24]} 10. Nxe7 {[%clk 0:02:37]}  Bxe7 {[%clk 0:02:24]} 11. dxe4 {[%clk 0:02:36]}  O-O {[%clk 0:02:20]} 12. g4 {[%clk 0:02:30]}  c4 {[%clk 0:02:18]} 13. Bg2 {[%clk 0:02:29]}  Nc6 {[%clk 0:02:18]} 14. Be3 {[%clk 0:02:24]}  h6 {[%clk 0:01:57]} 15. O-O {[%clk 0:02:17]}  Re8 {[%clk 0:01:52]} 16. f3 {[%clk 0:02:11]}  Ne5 {[%clk 0:01:42]} 17. a3 {[%clk 0:02:06]}  Bd7 {[%clk 0:01:35]} 18. Rad1 {[%clk 0:02:05]}  Bc6 {[%clk 0:01:35]} 19. Qf2 {[%clk 0:01:57]}  Rac8 {[%clk 0:01:26]} 20. Bd4 {[%clk 0:01:54]}  Bd6 {[%clk 0:01:16]} 21. h3 {[%clk 0:01:51]}  Bc7 {[%clk 0:01:05]} 22. Rfe1 {[%clk 0:01:39]}  Ned7 {[%clk 0:00:34]} 23. Kh1 {[%clk 0:01:37]}  b6 {[%clk 0:00:25]} 24. Bc3 {[%clk 0:01:33]}  Ne5 {[%clk 0:00:23]} 25. Rd2 {[%clk 0:01:30]}  Rcd8 {[%clk 0:00:21]} 26. Red1 {[%clk 0:01:30]}  Rxd2 {[%clk 0:00:20]} 27. Rxd2 {[%clk 0:01:30]}  Nf7 {[%clk 0:00:20]} 28. Bd4 {[%clk 0:01:26]}  Bf4 {[%clk 0:00:19]} 29. Be3 {[%clk 0:01:25]}  Bxe3 {[%clk 0:00:17]} 30. Qxe3 {[%clk 0:01:25]}  Rb8 {[%clk 0:00:18]} 31. f4 {[%clk 0:01:21]}  Be8 {[%clk 0:00:14]} 32. e5 {[%clk 0:01:21]}  Nd7 {[%clk 0:00:14]} 33. e6 {[%clk 0:01:20]}  Nc5 {[%clk 0:00:15]} 34. g5 {[%clk 0:01:14]}  Nd8 {[%clk 0:00:12]} 35. Bd5 {[%clk 0:01:10]}  Nc6 {[%clk 0:00:12]} 36. f6 {[%clk 0:01:09]}  Bg6 {[%clk 0:00:09]} 37. f5 {[%clk 0:01:06]}  Bxf5 {[%clk 0:00:07]} 38. e7+ {[%clk 0:01:06]}  Kh7 {[%clk 0:00:06]} 39. f7 {[%clk 0:01:06]}  Nxe7 {[%clk 0:00:06]} 40. Qxe7 {[%clk 0:01:03]}  Nd7 {[%clk 0:00:06]} 41. g6+ {[%clk 0:01:00]}  Bxg6 {[%clk 0:00:06]} 42. Qxd7 {[%clk 0:00:56]}  Rf8 {[%clk 0:00:06]} 43. Rg2 {[%clk 0:00:55]}  b4 {[%clk 0:00:02]} 44. axb4 {[%clk 0:00:53]}  b5 {[%clk 0:00:02]} 45. c3 {[%clk 0:00:53]}  h5 {[%clk 0:00:02]} 46. h4 {[%clk 0:00:53]} 1-0


[Site "https://www.chess.com"]